[Event "2nd FIDE WCC Rapid G12"]
[Site "Minsk"]
[Date "2018.06.22"]
[Round "4"]
[White "Andrukhovich, Elizaveta"]
[Black "Dubovyk, Anastasiia"]
[Result "0-1"]
[ECO "B24"]
[WhiteElo "1472"]
[BlackElo "1721"]
[Annotator "NA RC"]
[PlyCount "126"]
[EventDate "2018.06.22"]
[EventType "rapid"]
[EventCountry "BLR"]
[SourceTitle "playchess.com"]
[Source "ChessBase"]
[SourceQuality "1"]
[TimeControl "600+5"]

1. e4 {[%emt 0:00:00]} c5 {[%emt 0:00:02]} 2. Nc3 {[%emt 0:00:00]} Nc6 {[%emt 0:00:02]} 3. g3 {[%emt 0:00:00]} g6 {[%emt 0:00:01]} 4. Bg2 {[%emt 0:00:02]} Bg7 {[%emt 0:00:02]} 5. d3 {[%emt 0:00:07]} e6 {[%emt 0:00:01]} 6. f4 {[%emt 0:00:03]} Nge7 {[%emt 0:00:10]} 7. Nf3 {[%emt 0:00:03]} O-O {[%emt 0:00:03]} 8. O-O {[%emt 0:00:04]} d5 {[%emt 0:00:05]} 9. exd5 {[%emt 0:00:29]} exd5 {[%emt 0:00:13]} 10. Re1 {[%emt 0:00:38]} a6 {[%emt 0:00:21]} 11. h3 {[%emt 0:01:45]} b5 {[%emt 0:00:11]} 12. g4 {[%emt 0:00:17]} Bb7 {[%emt 0:00:20]} 13. Ne2 {[%emt 0:00:26]} Qc7 {[%emt 0:00:56]} 14. d4 {[%emt 0:00:59]} c4 {[%emt 0:01:26]} 15. Ne5 {[%emt 0:00:44]} f6 {[%emt 0:00:29]} 16. Nxc6 {[%emt 0:00:16]} Bxc6 {[%emt 0:00:04]} 17. Ng3 {[%emt 0:00:28]} Rfe8 {[%emt 0:00:24]} 18. Bd2 {[%emt 0:00:49]} Rad8 {[%emt 0:00:43]} 19. Qf3 {[%emt 0:00:41]} f5 {[%emt 0:00:41]} 20. c3 {[%emt 0:00:41]} Kh8 {[%emt 0:01:17]} 21. g5 {[%emt 0:00:12]} Nc8 {[%emt 0:00:20]} 22. h4 {[%emt 0:00:41]} Nd6 {[%emt 0:00:43]} 23. h5 {[%emt 0:00:56]} Ne4 {[%emt 0:00:13]} 24. Be3 {[%emt 0:00:25]} Kg8 {[%emt 0:00:41]} 25. h6 {[%emt 0:00:35]} Bf8 {[%emt 0:00:10]} 26. Nxe4 {[%emt 0:00:36]} dxe4 {[%emt 0:00:10]} 27. Qe2 {[%emt 0:00:10]} Bd5 {[%emt 0:00:04]} 28. Rac1 {[%emt 0:00:02]} Bd6 {[%emt 0:00:03]} 29. Qf2 {[%emt 0:00:04]} a5 {[%emt 0:00:10]} 30. a3 {[%emt 0:00:04]} Qb6 {[%emt 0:00:08]} 31. Rf1 {[%emt 0:00:04]} Rb8 {[%emt 0:00:04]} 32. Rb1 {[%emt 0:00:02]} b4 {[%emt 0:00:04]} 33. axb4 {[%emt 0:00:04]} axb4 {[%emt 0:00:03]} 34. Ra1 {[%emt 0:00:07]} Ra8 {[%emt 0:00:05]} 35. Qd2 {[%emt 0:00:05]} Ra5 {[%emt 0:00:35]} 36. Rxa5 {[%emt 0:00:06]} Qxa5 {[%emt 0:00:02]} 37. Rc1 {[%emt 0:00:04]} Ra8 {[%emt 0:00:13]} 38. Bf1 {[%emt 0:00:04]} b3 {[%emt 0:00:08]} 39. Qd1 {[%emt 0:00:10]} Qc7 {[%emt 0:00:31]} 40. Qd2 {[%emt 0:00:03]} Ra2 {[%emt 0:00:08]} 41. Rb1 {[%emt 0:00:10]} Qa5 {[%emt 0:00:45]} 42. Qc1 {[%emt 0:00:07]} Qa8 {[%emt 0:00:22]} 43. Be2 {[%emt 0:00:03]} Kf7 {[%emt 0:00:10]} 44. Qf1 {[%emt 0:00:03]} Qc6 {[%emt 0:00:09]} 45. Qc1 {[%emt 0:00:07]} Qc7 {[%emt 0:00:06]} 46. Qf1 {[%emt 0:00:03]} Be7 {[%emt 0:00:05]} 47. Bd1 {[%emt 0:00:07]} Qb8 {[%emt 0:00:07]} 48. Be2 {[%emt 0:00:02]} Bxg5 {[%emt 0:00:06]} 49. fxg5 {[%emt 0:00:06]} Qg3+ {[%emt 0:00:02]} 50. Qg2 {[%emt 0:00:04]} Qxe3+ {[%emt 0:00:01]} 51. Kh1 {[%emt 0:00:08]} Qf4 {[%emt 0:00:08]} 52. Rf1 {[%emt 0:00:04]} Qd6 {[%emt 0:00:07]} 53. Bd1 {[%emt 0:00:04]} e3 {[%emt 0:00:07]} 54. Bf3 {[%emt 0:00:04]} Bxf3 {[%emt 0:00:07]} 55. Rxf3 {[%emt 0:00:02]} Ra1+ {[%emt 0:00:03]} 56. Rf1 {[%emt 0:00:03]} Rxf1+ {[%emt 0:00:02]} 57. Qxf1 {[%emt 0:00:01]} Qd5+ {[%emt 0:00:03]} 58. Kg1 {[%emt 0:00:02]} Ke6 {[%emt 0:00:05]} 59. Qf4 {[%emt 0:00:01]} Qe4 {[%emt 0:00:08]} 60. Qh2 {[%emt 0:00:11]} Qb1+ {[%emt 0:00:04]} 61. Kg2 {[%emt 0:00:05]} Qxb2+ {[%emt 0:00:01]} 62. Kg3 {[%emt 0:00:00]} Qxh2+ {[%emt 0:00:03]} 63. Kxh2 {[%emt 0:00:01]} e2 {[%emt 0:00:02]} 0-1

[Event "2nd FIDE WCC Rapid G12"]
[Site "Minsk"]
[Date "2018.06.22"]
[Round "4"]
[White "Osmolovska, Yevheniia"]
[Black "Omonova, Umida"]
[Result "0-1"]
[ECO "B30"]
[WhiteElo "1391"]
[BlackElo "1733"]
[Annotator "NA RC"]
[PlyCount "38"]
[EventDate "2018.06.22"]
[EventType "rapid"]
[EventCountry "BLR"]
[SourceTitle "playchess.com"]
[Source "ChessBase"]
[SourceQuality "1"]
[TimeControl "600+5"]

1. e4 {[%emt 0:00:00]} c5 {[%emt 0:00:01]} 2. Nf3 {[%emt 0:00:00]} Nc6 {[%emt 0:00:01]} 3. c3 {[%emt 0:00:02]} d5 {[%emt 0:00:04]} 4. exd5 {[%emt 0:00:04]} Qxd5 {[%emt 0:00:03]} 5. Be2 {[%emt 0:00:07]} Nf6 {[%emt 0:00:15]} 6. O-O {[%emt 0:00:03]} e5 {[%emt 0:00:05]} 7. d3 {[%emt 0:00:02]} Be7 {[%emt 0:00:04]} 8. Bg5 {[%emt 0:00:03]} O-O {[%emt 0:00:03]} 9. Nbd2 {[%emt 0:00:08]} Bf5 {[%emt 0:00:05]} 10. Nb3 {[%emt 0:00:16]} Rad8 {[%emt 0:00:13]} 11. Be3 {[%emt 0:00:00]} b6 {[%emt 0:00:43]} 12. Ne1 {[%emt 0:00:02]} Qe6 {[%emt 0:00:13]} 13. Qc1 {[%emt 0:00:11]} Nd5 {[%emt 0:00:24]} 14. a4 {[%emt 0:00:24]} Nxe3 {[%emt 0:00:02]} 15. fxe3 {[%emt 0:00:02]} Bg6 {[%emt 0:00:05]} 16. Bf3 {[%emt 0:00:09]} Bg5 {[%emt 0:00:50]} 17. c4 {[%emt 0:00:26]} Nb4 {[%emt 0:00:06]} 18. d4 {[%emt 0:00:14]} exd4 {[%emt 0:00:03]} 19. exd4 {[%emt 0:00:02]} Bxc1 {[%emt 0:00:01]} 0-1

[Event "2nd FIDE WCC Rapid G12"]
[Site "Minsk"]
[Date "2018.06.22"]
[Round "4"]
[White "Nguyen, Linh Dan"]
[Black "Shaban, Aliaksandra"]
[Result "1/2-1/2"]
[ECO "C11"]
[WhiteElo "1325"]
[BlackElo "1425"]
[Annotator "NA RC"]
[PlyCount "142"]
[EventDate "2018.06.22"]
[EventType "rapid"]
[EventCountry "BLR"]
[SourceTitle "playchess.com"]
[Source "ChessBase"]
[SourceQuality "1"]
[TimeControl "600+5"]

1. e4 {[%emt 0:00:00]} Nf6 {[%emt 0:00:01]} 2. Nc3 {[%emt 0:00:02]} d5 {[%emt 0:00:04]} 3. e5 {[%emt 0:00:07]} Nfd7 {[%emt 0:00:01]} 4. d4 {[%emt 0:00:01]} e6 {[%emt 0:00:03]} 5. f4 {[%emt 0:00:14]} c5 {[%emt 0:00:09]} 6. Nf3 {[%emt 0:00:05]} Nc6 {[%emt 0:00:01]} 7. Be3 {[%emt 0:00:08]} Qb6 {[%emt 0:00:04]} 8. Rb1 {[%emt 0:00:24]} cxd4 {[%emt 0:01:05]} 9. Nxd4 {[%emt 0:00:07]} Be7 {[%emt 0:00:28]} 10. Bb5 {[%emt 0:01:20]} Qc7 {[%emt 0:00:14]} 11. O-O {[%emt 0:00:16]} O-O {[%emt 0:00:05]} 12. Kh1 {[%emt 0:00:12]} a6 {[%emt 0:00:08]} 13. Be2 {[%emt 0:00:12]} Nxd4 {[%emt 0:00:26]} 14. Bxd4 {[%emt 0:00:02]} Bc5 {[%emt 0:00:09]} 15. Bxc5 {[%emt 0:00:27]} Nxc5 {[%emt 0:00:10]} 16. Qd4 {[%emt 0:00:05]} Nd7 17. Rbd1 {[%emt 0:00:58]} Qc5 {[%emt 0:01:12]} 18. Qxc5 {[%emt 0:00:07]} Nxc5 {[%emt 0:00:02]} 19. b4 {[%emt 0:00:03]} Nd7 {[%emt 0:00:04]} 20. a4 {[%emt 0:00:12]} b6 {[%emt 0:00:08]} 21. Bf3 {[%emt 0:00:25]} Bb7 {[%emt 0:00:11]} 22. Ne2 {[%emt 0:00:42]} Rac8 {[%emt 0:00:08]} 23. Nd4 {[%emt 0:00:02]} Rc4 {[%emt 0:00:19]} 24. f5 {[%emt 0:00:35]} exf5 {[%emt 0:00:48]} 25. Nxf5 {[%emt 0:00:08]} Nxe5 {[%emt 0:00:20]} 26. Bxd5 {[%emt 0:00:21]} Bxd5 {[%emt 0:00:05]} 27. Rxd5 {[%emt 0:00:02]} Ng4 {[%emt 0:00:31]} 28. Rd4 {[%emt 0:00:38]} Rxd4 {[%emt 0:00:18]} 29. Nxd4 {[%emt 0:00:01]} Ne3 {[%emt 0:00:07]} 30. Rf3 {[%emt 0:00:24]} Nd5 {[%emt 0:00:07]} 31. b5 {[%emt 0:00:12]} axb5 {[%emt 0:00:26]} 32. axb5 {[%emt 0:00:01]} Ra8 {[%emt 0:00:07]} 33. h3 {[%emt 0:00:05]} g6 {[%emt 0:00:03]} 34. c4 {[%emt 0:00:03]} Nc7 {[%emt 0:00:30]} 35. Rf6 {[%emt 0:00:02]} Ra1+ {[%emt 0:00:07]} 36. Kh2 {[%emt 0:00:02]} Na8 {[%emt 0:00:19]} 37. Rc6 {[%emt 0:00:05]} Kg7 {[%emt 0:00:10]} 38. Nb3 {[%emt 0:00:11]} Ra3 {[%emt 0:00:04]} 39. Nd4 {[%emt 0:00:19]} Rd3 {[%emt 0:00:04]} 40. Nf3 {[%emt 0:00:01]} Rd7 {[%emt 0:00:28]} 41. Ne5 {[%emt 0:00:17]} Rc7 {[%emt 0:00:23]} 42. Rxc7 Nxc7 {[%emt 0:00:01]} 43. Kg3 {[%emt 0:00:19]} f6 {[%emt 0:00:09]} 44. Nd7 {[%emt 0:00:04]} Na8 {[%emt 0:00:01]} 45. Kf4 {[%emt 0:00:14]} Kf7 {[%emt 0:00:07]} 46. Ke4 {[%emt 0:00:08]} Ke7 {[%emt 0:00:10]} 47. Nb8 {[%emt 0:00:02]} Kd6 {[%emt 0:00:06]} 48. Na6 {[%emt 0:00:09]} f5+ {[%emt 0:00:47]} 49. Kf4 {[%emt 0:00:03]} h6 {[%emt 0:00:06]} 50. g4 {[%emt 0:00:06]} fxg4 {[%emt 0:00:05]} 51. hxg4 {[%emt 0:00:01]} Ke6 {[%emt 0:00:14]} 52. Ke4 {[%emt 0:00:10]} Kd6 {[%emt 0:00:30]} 53. Kf4 {[%emt 0:00:08]} Ke6 {[%emt 0:00:18]} 54. Nb4 {[%emt 0:00:10]} Nc7 {[%emt 0:00:10]} 55. Nd3 {[%emt 0:00:02]} Ne8 {[%emt 0:00:11]} 56. Ne5 {[%emt 0:00:07]} Nd6 {[%emt 0:00:18]} 57. Nxg6 {[%emt 0:00:25]} Nxc4 {[%emt 0:00:05]} 58. Nf8+ {[%emt 0:00:04]} Ke7 {[%emt 0:00:08]} 59. Ng6+ {[%emt 0:00:18]} Kf6 {[%emt 0:00:12]} 60. Nf8 {[%emt 0:00:03]} Kf7 {[%emt 0:00:35]} 61. Nd7 {[%emt 0:00:16]} Ke7 {[%emt 0:00:04]} 62. Ne5 {[%emt 0:00:08]} Nd6 {[%emt 0:00:09]} 63. Nc6+ {[%emt 0:00:02]} Kf6 {[%emt 0:00:06]} 64. Nd4 {[%emt 0:00:02]} Nc8 {[%emt 0:00:13]} 65. Nf5 {[%emt 0:00:05]} Kg6 {[%emt 0:00:10]} 66. Ke4 {[%emt 0:00:19]} Kg5 {[%emt 0:00:22]} 67. Kd5 {[%emt 0:00:12]} Kxg4 {[%emt 0:00:03]} 68. Nxh6+ {[%emt 0:00:02]} Kg5 {[%emt 0:00:01]} 69. Nf7+ {[%emt 0:00:04]} Kf6 {[%emt 0:00:01]} 70. Nd6 {[%emt 0:00:02]} Ne7+ {[%emt 0:00:04]} 71. Kc4 {[%emt 0:00:05]} Ke6 1/2-1/2

[Event "2nd FIDE WCC Rapid G12"]
[Site "Minsk"]
[Date "2018.06.22"]
[Round "4"]
[White "Misiuk, Monika"]
[Black "Kudryavtseva, Anastasia"]
[Result "1/2-1/2"]
[ECO "E91"]
[WhiteElo "1288"]
[BlackElo "1420"]
[Annotator "NA RC"]
[PlyCount "89"]
[EventDate "2018.06.22"]
[EventType "rapid"]
[EventCountry "BLR"]
[SourceTitle "playchess.com"]
[Source "ChessBase"]
[SourceQuality "1"]
[TimeControl "600+5"]

1. d4 {[%emt 0:00:00]} Nf6 {[%emt 0:00:02]} 2. c4 {[%emt 0:00:00]} g6 {[%emt 0:00:01]} 3. Nc3 {[%emt 0:00:05]} Bg7 {[%emt 0:00:00]} 4. e4 {[%emt 0:00:24]} d6 {[%emt 0:00:01]} 5. Nf3 {[%emt 0:00:07]} O-O {[%emt 0:00:04]} 6. Be2 {[%emt 0:00:09]} c6 {[%emt 0:00:06]} 7. O-O {[%emt 0:00:06]} Nbd7 {[%emt 0:00:01]} 8. b3 {[%emt 0:00:17]} e5 {[%emt 0:00:03]} 9. Bb2 {[%emt 0:00:28]} Qc7 {[%emt 0:00:08]} 10. Qc2 {[%emt 0:00:14]} b6 {[%emt 0:00:34]} 11. Rfd1 {[%emt 0:00:25]} Bb7 {[%emt 0:00:07]} 12. Rac1 {[%emt 0:00:41]} Rad8 {[%emt 0:00:23]} 13. h3 {[%emt 0:00:15]} h6 {[%emt 0:00:40]} 14. a3 {[%emt 0:00:23]} a5 {[%emt 0:00:15]} 15. Rd2 {[%emt 0:01:46]} Kh7 {[%emt 0:01:17]} 16. Qd1 {[%emt 0:00:17]} c5 {[%emt 0:01:17]} 17. dxe5 {[%emt 0:00:23]} dxe5 {[%emt 0:00:50]} 18. Nd5 {[%emt 0:00:23]} Qb8 {[%emt 0:00:29]} 19. Qc2 {[%emt 0:00:33]} Nxd5 {[%emt 0:00:27]} 20. exd5 {[%emt 0:00:09]} Qd6 {[%emt 0:00:09]} 21. Re1 {[%emt 0:00:19]} f5 {[%emt 0:00:12]} 22. Bd1 {[%emt 0:00:33]} e4 {[%emt 0:00:10]} 23. Bxg7 {[%emt 0:00:22]} Kxg7 {[%emt 0:00:04]} 24. Nh2 {[%emt 0:00:12]} Rfe8 {[%emt 0:00:15]} 25. Rde2 {[%emt 0:00:10]} Ne5 {[%emt 0:00:52]} 26. Qb1 {[%emt 0:00:34]} Nd3 {[%emt 0:00:12]} 27. Rf1 {[%emt 0:00:06]} Nf4 {[%emt 0:00:15]} 28. Re3 {[%emt 0:00:13]} Qe5 {[%emt 0:00:22]} 29. Bc2 {[%emt 0:00:34]} Re7 {[%emt 0:00:12]} 30. Rfe1 {[%emt 0:00:31]} Rde8 {[%emt 0:00:42]} 31. Nf3 {[%emt 0:00:18]} Qd6 {[%emt 0:00:05]} 32. Nd2 {[%emt 0:00:11]} Qf6 {[%emt 0:00:25]} 33. Qa1 {[%emt 0:01:07]} Qxa1 {[%emt 0:00:27]} 34. Rxa1 {[%emt 0:00:01]} Kf7 {[%emt 0:00:36]} 35. Rae1 {[%emt 0:00:09]} Bc8 {[%emt 0:00:05]} 36. Kh2 {[%emt 0:00:09]} Nh5 {[%emt 0:00:15]} 37. Bb1 {[%emt 0:00:09]} Nf6 {[%emt 0:00:12]} 38. Kg1 {[%emt 0:00:06]} g5 {[%emt 0:00:05]} 39. g3 {[%emt 0:00:05]} Rd7 {[%emt 0:00:29]} 40. Kg2 {[%emt 0:00:04]} Rd6 {[%emt 0:00:09]} 41. Bc2 {[%emt 0:00:04]} Bd7 {[%emt 0:00:04]} 42. Bb1 {[%emt 0:00:06]} Bc8 {[%emt 0:00:01]} 43. Bc2 {[%emt 0:00:03]} Ba6 {[%emt 0:00:06]} 44. Kg1 {[%emt 0:00:06]} b5 {[%emt 0:00:16]} 45. Kg2 {[%emt 0:00:04]} 1/2-1/2

[Event "2nd FIDE WCC Rapid G12"]
[Site "Minsk"]
[Date "2018.06.22"]
[Round "4"]
[White "Shokirjonova, Barchinoy"]
[Black "Krupnova, Anna"]
[Result "1/2-1/2"]
[ECO "E50"]
[WhiteElo "1247"]
[BlackElo "1761"]
[Annotator "NA RC"]
[PlyCount "87"]
[EventDate "2018.06.22"]
[EventType "rapid"]
[EventCountry "BLR"]
[SourceTitle "playchess.com"]
[Source "ChessBase"]
[SourceQuality "1"]
[TimeControl "600+5"]

1. d4 {[%emt 0:00:01]} Nf6 {[%emt 0:00:03]} 2. c4 {[%emt 0:00:01]} e6 {[%emt 0:00:05]} 3. Nf3 {[%emt 0:00:04]} Bb4+ {[%emt 0:00:03]} 4. Nc3 {[%emt 0:00:04]} O-O {[%emt 0:00:07]} 5. e3 {[%emt 0:00:01]} d6 {[%emt 0:00:17]} 6. Bd3 {[%emt 0:00:13]} Qe7 {[%emt 0:00:13]} 7. O-O {[%emt 0:00:53]} Bxc3 {[%emt 0:00:02]} 8. bxc3 {[%emt 0:00:02]} e5 {[%emt 0:00:07]} 9. Nd2 {[%emt 0:02:16]} Nbd7 {[%emt 0:00:29]} 10. e4 {[%emt 0:00:46]} Re8 {[%emt 0:02:19]} 11. f3 {[%emt 0:01:07]} b6 {[%emt 0:01:43]} 12. Ba3 {[%emt 0:01:00]} Bb7 {[%emt 0:02:36]} 13. Qe2 {[%emt 0:00:55]} Rad8 {[%emt 0:00:42]} 14. Rae1 {[%emt 0:00:25]} c5 {[%emt 0:00:33]} 15. d5 {[%emt 0:00:09]} Nf8 {[%emt 0:00:12]} 16. f4 {[%emt 0:00:33]} exf4 {[%emt 0:00:10]} 17. Rxf4 {[%emt 0:00:02]} Ng6 {[%emt 0:00:03]} 18. Rff1 {[%emt 0:00:13]} Ne5 {[%emt 0:00:07]} 19. Nf3 {[%emt 0:00:05]} Nfd7 {[%emt 0:00:15]} 20. Nxe5 {[%emt 0:01:14]} Nxe5 {[%emt 0:00:02]} 21. Bc1 {[%emt 0:00:02]} Bc8 {[%emt 0:00:15]} 22. h3 {[%emt 0:00:04]} Bd7 {[%emt 0:00:28]} 23. Bf4 {[%emt 0:00:14]} Rf8 {[%emt 0:00:22]} 24. Qe3 {[%emt 0:00:38]} Rde8 {[%emt 0:00:23]} 25. Qg3 {[%emt 0:00:24]} f6 {[%emt 0:00:19]} 26. Re3 {[%emt 0:00:29]} Kh8 {[%emt 0:00:11]} 27. Ree1 {[%emt 0:00:13]} Kg8 28. Kh1 {[%emt 0:00:05]} Kh8 {[%emt 0:00:09]} 29. Qe3 {[%emt 0:00:02]} Rf7 {[%emt 0:00:04]} 30. Qg3 {[%emt 0:00:04]} Rff8 {[%emt 0:00:03]} 31. Qe3 {[%emt 0:00:03]} Rg8 {[%emt 0:00:05]} 32. Qg3 {[%emt 0:00:01]} Rgf8 {[%emt 0:00:02]} 33. Qe3 {[%emt 0:00:03]} Rg8 {[%emt 0:00:09]} 34. Rf2 {[%emt 0:00:02]} Ng6 {[%emt 0:00:08]} 35. Bh2 {[%emt 0:00:05]} Ne5 {[%emt 0:00:03]} 36. Kg1 {[%emt 0:00:05]} Rgf8 {[%emt 0:00:02]} 37. Bf4 Ng6 {[%emt 0:00:09]} 38. Qg3 {[%emt 0:00:08]} Ne5 {[%emt 0:00:05]} 39. Rfe2 {[%emt 0:00:16]} Rg8 {[%emt 0:00:05]} 40. Rf2 {[%emt 0:00:04]} Rgf8 {[%emt 0:00:00]} 41. Bxe5 {[%emt 0:00:07]} Qxe5 {[%emt 0:00:05]} 42. Qxe5 fxe5 {[%emt 0:00:11]} 43. Ref1 {[%emt 0:00:14]} Kg8 {[%emt 0:00:05]} 44. a3 {[%emt 0:00:06]} 1/2-1/2

[Event "2nd FIDE WCC Rapid G12"]
[Site "Minsk"]
[Date "2018.06.23"]
[Round "5"]
[White "Zvereva, Margarita"]
[Black "Dubovik, Maria"]
[Result "0-1"]
[ECO "B92"]
[WhiteElo "1838"]
[BlackElo "1408"]
[Annotator "NA"]
[PlyCount "124"]
[EventDate "2018.06.22"]
[EventType "rapid"]
[EventCountry "BLR"]
[SourceTitle "playchess.com"]
[Source "ChessBase"]
[SourceQuality "1"]
[TimeControl "600+5"]

1. e4 {[%emt 0:00:00]} c5 {[%emt 0:00:01]} 2. Nf3 {[%emt 0:00:02]} d6 {[%emt 0:00:02]} 3. d4 {[%emt 0:00:10]} cxd4 {[%emt 0:00:03]} 4. Nxd4 {[%emt 0:00:03]} Nf6 {[%emt 0:00:03]} 5. Nc3 {[%emt 0:00:02]} a6 {[%emt 0:00:02]} 6. Be2 {[%emt 0:00:15]} b5 {[%emt 0:00:10]} 7. Bf3 {[%emt 0:01:22]} e5 {[%emt 0:00:44]} 8. Nb3 {[%emt 0:01:19]} Nc6 {[%emt 0:00:21]} 9. Bg5 {[%emt 0:02:33]} Be7 {[%emt 0:00:47]} 10. Bxf6 {[%emt 0:00:23]} Bxf6 {[%emt 0:00:09]} 11. Nd5 {[%emt 0:00:05]} O-O {[%emt 0:00:34]} 12. O-O {[%emt 0:00:21]} Be7 {[%emt 0:00:11]} 13. a4 {[%emt 0:00:22]} bxa4 {[%emt 0:00:21]} 14. Rxa4 {[%emt 0:00:02]} Be6 {[%emt 0:00:30]} 15. Be2 {[%emt 0:00:32]} Bxd5 {[%emt 0:02:38]} 16. Qxd5 {[%emt 0:00:22]} Qd7 {[%emt 0:00:28]} 17. Rfa1 {[%emt 0:00:19]} h6 {[%emt 0:02:23]} 18. c3 {[%emt 0:00:29]} Kh8 {[%emt 0:00:33]} 19. Rxa6 {[%emt 0:00:19]} Rxa6 {[%emt 0:00:10]} 20. Rxa6 {[%emt 0:00:02]} Nb8 {[%emt 0:00:11]} 21. Ra8 {[%emt 0:00:30]} f5 {[%emt 0:00:17]} 22. Bb5 {[%emt 0:00:59]} Qc8 {[%emt 0:00:19]} 23. h3 {[%emt 0:00:56]} fxe4 {[%emt 0:00:02]} 24. Qxe4 {[%emt 0:00:02]} Bf6 {[%emt 0:00:07]} 25. Nd2 {[%emt 0:00:23]} Qc5 {[%emt 0:00:22]} 26. Qe2 {[%emt 0:00:02]} d5 {[%emt 0:00:06]} 27. Nf3 {[%emt 0:00:08]} e4 {[%emt 0:00:06]} 28. Nd2 {[%emt 0:00:08]} Bh4 {[%emt 0:00:03]} 29. Kh2 {[%emt 0:00:06]} Bxf2 {[%emt 0:00:03]} 30. Qg4 {[%emt 0:00:05]} Bg1+ {[%emt 0:00:12]} 31. Kh1 {[%emt 0:00:01]} Be3 {[%emt 0:00:05]} 32. Nb3 {[%emt 0:00:05]} Qxb5 {[%emt 0:00:03]} 33. Nd4 Qf1+ {[%emt 0:00:01]} 34. Kh2 {[%emt 0:00:06]} Bf4+ {[%emt 0:00:02]} 35. g3 {[%emt 0:00:02]} Qf2+ {[%emt 0:00:01]} 36. Kh1 {[%emt 0:00:02]} Bxg3 {[%emt 0:00:04]} 37. Qe2 {[%emt 0:00:10]} Qf6 {[%emt 0:00:09]} 38. Qg2 {[%emt 0:00:11]} Be5 {[%emt 0:00:06]} 39. Nb3 {[%emt 0:00:06]} Qf1+ {[%emt 0:00:06]} 40. Qxf1 {[%emt 0:00:02]} Rxf1+ {[%emt 0:00:01]} 41. Kg2 {[%emt 0:00:01]} Rb1 {[%emt 0:00:04]} 42. Ra2 {[%emt 0:00:13]} Bxc3 {[%emt 0:00:03]} 43. bxc3 {[%emt 0:00:01]} Rxb3 {[%emt 0:00:02]} 44. Ra8 {[%emt 0:00:07]} Kg8 {[%emt 0:00:05]} 45. Kf2 {[%emt 0:00:04]} Kf7 {[%emt 0:00:02]} 46. Ke3 {[%emt 0:00:07]} Nc6 {[%emt 0:00:02]} 47. Ra6 {[%emt 0:00:04]} Rxc3+ {[%emt 0:00:03]} 48. Kd2 {[%emt 0:00:01]} Rc5 {[%emt 0:00:03]} 49. Rb6 {[%emt 0:00:05]} Ke6 {[%emt 0:00:03]} 50. Rb7 {[%emt 0:00:04]} g5 {[%emt 0:00:03]} 51. Rh7 {[%emt 0:00:01]} Nb4 {[%emt 0:00:05]} 52. Rxh6+ {[%emt 0:00:02]} Ke5 {[%emt 0:00:01]} 53. Rg6 {[%emt 0:00:07]} Kd4 {[%emt 0:00:05]} 54. Rxg5 {[%emt 0:00:03]} Rc2+ {[%emt 0:00:08]} 55. Kd1 {[%emt 0:00:02]} Kd3 {[%emt 0:00:06]} 56. Rg3+ {[%emt 0:00:01]} e3 {[%emt 0:00:00]} 57. Rg4 {[%emt 0:00:15]} Rh2 {[%emt 0:00:09]} 58. Rg1 {[%emt 0:00:03]} Rxh3 {[%emt 0:00:19]} 59. Kc1 {[%emt 0:00:10]} e2 {[%emt 0:00:04]} 60. Re1 {[%emt 0:00:04]} Nc2 {[%emt 0:00:03]} 61. Rxe2 {[%emt 0:00:01]} Kxe2 {[%emt 0:00:02]} 62. Kxc2 {[%emt 0:00:01]} d4 {[%emt 0:00:05]} 0-1

[Event "2nd FIDE WCC Rapid G12"]
[Site "Minsk"]
[Date "2018.06.23"]
[Round "5"]
[White "Omonova, Umida"]
[Black "Khabibullaeva, Mokhinur"]
[Result "1-0"]
[ECO "C06"]
[WhiteElo "1733"]
[BlackElo "1462"]
[Annotator "NA"]
[PlyCount "67"]
[EventDate "2018.06.22"]
[EventType "rapid"]
[EventCountry "BLR"]
[SourceTitle "playchess.com"]
[Source "ChessBase"]
[SourceQuality "1"]
[TimeControl "600+5"]

1. e4 {[%emt 0:00:00]} e6 {[%emt 0:00:01]} 2. d4 {[%emt 0:00:00]} d5 {[%emt 0:00:03]} 3. Nd2 {[%emt 0:00:01]} Nf6 {[%emt 0:00:02]} 4. e5 {[%emt 0:00:01]} Nfd7 {[%emt 0:00:01]} 5. Bd3 {[%emt 0:00:02]} c5 {[%emt 0:00:01]} 6. c3 {[%emt 0:00:03]} Nc6 {[%emt 0:00:01]} 7. Ne2 {[%emt 0:00:08]} cxd4 {[%emt 0:00:03]} 8. cxd4 {[%emt 0:00:01]} f6 {[%emt 0:00:01]} 9. exf6 {[%emt 0:00:17]} Nxf6 {[%emt 0:00:02]} 10. Nf3 {[%emt 0:00:04]} Bd6 {[%emt 0:00:01]} 11. O-O {[%emt 0:00:05]} Qc7 {[%emt 0:00:01]} 12. Bg5 {[%emt 0:00:28]} O-O {[%emt 0:00:03]} 13. Bh4 {[%emt 0:00:07]} e5 {[%emt 0:00:13]} 14. dxe5 {[%emt 0:00:44]} Nxe5 {[%emt 0:00:02]} 15. Nxe5 {[%emt 0:00:09]} Bxe5 {[%emt 0:00:05]} 16. Bg3 {[%emt 0:00:17]} Bd7 {[%emt 0:01:24]} 17. Rc1 {[%emt 0:00:45]} Bc6 {[%emt 0:00:56]} 18. Nd4 {[%emt 0:00:23]} Rae8 {[%emt 0:01:10]} 19. Qc2 {[%emt 0:02:37]} Qb6 {[%emt 0:02:20]} 20. Nxc6 {[%emt 0:00:57]} bxc6 {[%emt 0:00:02]} 21. b3 {[%emt 0:00:03]} Bxg3 {[%emt 0:00:07]} 22. hxg3 {[%emt 0:00:02]} Rc8 {[%emt 0:00:13]} 23. Bf5 {[%emt 0:00:36]} Rc7 {[%emt 0:00:06]} 24. Be6+ {[%emt 0:00:34]} Kh8 {[%emt 0:00:01]} 25. Rfe1 {[%emt 0:00:55]} Ne4 {[%emt 0:00:19]} 26. Re2 {[%emt 0:00:03]} Nxg3 {[%emt 0:00:14]} 27. Re3 {[%emt 0:00:09]} Ne4 {[%emt 0:00:23]} 28. Re2 {[%emt 0:01:02]} Nf6 {[%emt 0:02:26]} 29. Rce1 {[%emt 0:00:26]} c5 {[%emt 0:00:35]} 30. Qd3 {[%emt 0:00:22]} Qd6 {[%emt 0:01:03]} 31. Bf5 {[%emt 0:00:05]} Rcf7 {[%emt 0:00:18]} 32. Re6 {[%emt 0:00:11]} Qc7 {[%emt 0:00:03]} 33. Qh3 {[%emt 0:00:09]} Ne4 {[%emt 0:00:10]} 34. Qxh7# 1-0